bitfinex/quotes_BTCUSD_20251219
["timestamp","ask_amount","ask_price","bid_price","bid_amount"]
[1766161967989,0.01138027,88714.0,88707.0,0.0025]
[1766161968633,0.78292,88726.0,88714.0,0.0009909]
[1766161968786,0.78292,88724.0,88714.0,0.0009909]
[1766161968995,0.01127039,88728.0,88714.0,0.0009909]
[1766161969208,0.26811989,88732.0,88708.0,0.09714088]
[1766161969209,0.01126963,88734.0,88722.0,0.08586794]
[1766161969542,0.05634754,88736.0,88722.0,0.08586794]
[1766161969543,0.0025,88735.0,88722.0,0.08586794]
[1766161969755,0.01126963,88734.0,88722.0,0.08586794]
[1766161969911,0.27061951,88735.0,88722.0,0.08586794]
[1766161970113,0.05635033,88731.0,88722.0,0.08586794]
[1766161970295,0.01126976,88733.0,88722.0,0.08586794]
[1766161970497,0.00568,88739.0,88723.0,0.0025]
[1766161970697,0.78292,88750.0,88728.0,0.0125]
[1766161970698,0.00568,88744.0,88728.0,0.0125]
[1766161970931,0.00568,88744.0,88729.0,0.0025]
[1766161970932,0.78896089,88744.0,88729.0,0.0025]
[1766161971385,0.01126849,88743.0,88729.0,0.0025]
[1766161971522,0.05634379,88741.0,88729.0,0.0025]
[1766161971722,0.01126912,88738.0,88729.0,0.0025]
[1766161971919,0.06761346,88740.0,88725.0,0.0025]
[1766161972148,0.01126887,88740.0,88725.0,0.0025]
[1766161972353,0.00036089,88744.0,88726.0,0.01127065]
[1766161972578,8.9e-07,88744.0,88731.0,0.03968434]
[1766161972914,8.9e-07,88744.0,88732.0,0.00818]
[1766161973687,0.52607089,88744.0,88732.0,0.00818]
[1766161973884,8.9e-07,88744.0,88732.0,0.00818]
[1766161974098,0.01126849,88743.0,88732.0,0.00818]
[1766161974290,0.01126849,88743.0,88728.0,0.08586794]
[1766161974291,0.000468,88732.0,88729.0,0.0025]
[1766161974529,0.000468,88732.0,88728.0,0.00568]
[1766161974530,0.22536955,88744.0,88736.0,0.01126938]
[1766161974531,8.9e-07,88744.0,88736.0,0.01126938]
[1766161974755,8.9e-07,88744.0,88736.0,0.07011571]
[1766161974926,8.9e-07,88744.0,88737.0,0.06761543]
[1766161975129,8.9e-07,88744.0,88737.0,0.01126925]
[1766161975544,8.9e-07,88744.0,88741.0,0.01126874]
[1766161975753,8.9e-07,88744.0,88742.0,0.05634273]
[1766161975887,8.9e-07,88744.0,88740.0,0.01126887]
[1766161975888,8.9e-07,88744.0,88740.0,0.0025]
[1766161976233,8.9e-07,88744.0,88740.0,0.01376887]
[1766161976405,8.9e-07,88744.0,88741.0,0.01126874]
[1766161976615,8.9e-07,88744.0,88742.0,0.05634289]
[1766161976810,8.9e-07,88744.0,88740.0,0.0025]
[1766161977011,8.9e-07,88744.0,88725.0,0.01127078]
[1766161977012,8.9e-07,88744.0,88737.0,0.0025]
[1766161978185,8.9e-07,88744.0,88736.0,0.0025]
[1766161979346,8.9e-07,88744.0,88740.0,0.0025]
[1766161980129,0.0676114,88744.0,88735.0,0.00568]
[1766161980337,0.0676114,88744.0,88724.0,0.05635442]
[1766161980338,0.01126989,88732.0,88726.0,0.03803225]
[1766161980609,0.06762337,88727.0,88717.0,0.01]
[1766161980796,0.06762478,88725.0,88717.0,0.01]
[1766161981009,0.06762478,88725.0,88704.0,0.04512]
[1766161981010,0.00568,88733.0,88712.0,0.08586794]
[1766161981011,0.00568,88726.0,88712.0,0.08586794]
[1766161981210,0.05634841,88734.0,88714.0,0.01127217]
[1766161981423,0.01126951,88735.0,88732.0,0.08586794]
[1766161981714,0.01126925,88737.0,88732.0,0.08586794]
[1766161981928,0.011269,88739.0,88732.0,0.08586794]
[1766161982138,0.52607,88743.0,88732.0,0.08586794]
[1766161982386,8.9e-07,88744.0,88734.0,0.01126963]
[1766161982597,8.9e-07,88744.0,88735.0,0.01126951]
[1766161982802,8.9e-07,88744.0,88738.0,0.0025]
[1766161983436,8.9e-07,88744.0,88739.0,0.011269]
[1766161983646,0.00568,88753.0,88739.0,0.011269]
[1766161983853,0.00578816,88753.0,88739.0,0.011269]
[1766161984262,0.00578816,88753.0,88740.0,0.0025]
[1766161984263,0.00010816,88753.0,88740.0,0.0025]
[1766161984437,0.00010816,88753.0,88747.0,0.08586794]
[1766161984895,0.00010816,88753.0,88743.0,0.0025]
[1766161984896,0.01126747,88751.0,88743.0,0.0025]
[1766161985104,0.01126773,88749.0,88743.0,0.0025]
[1766161985237,0.0112676,88750.0,88743.0,0.0025]
[1766161985440,0.06760582,88750.0,88739.0,0.0025]
[1766161985647,0.01126824,88745.0,88739.0,0.0025]
[1766161985846,0.01126811,88746.0,88739.0,0.0025]
[1766161986096,0.01126798,88747.0,88739.0,0.0025]
[1766161986518,0.01126824,88745.0,88736.0,0.0025]
[1766161986802,0.01126798,88747.0,88736.0,0.0025]
[1766161986936,0.06760798,88747.0,88736.0,0.0025]
[1766161987309,0.49859383,88755.0,88747.0,0.001099]
[1766161987543,0.04008985,88791.0,88747.0,0.001099]
[1766161987544,0.04008985,88791.0,88765.0,0.0025]
[1766161987545,0.01146265,88789.0,88765.0,0.0025]
[1766161987764,0.0002,88789.0,88773.0,0.08586794]
[1766161987978,0.00030814,88789.0,88774.0,0.00568]
[1766161988392,0.00030814,88789.0,88776.0,0.0112643]
[1766161988630,0.00030814,88789.0,88774.0,0.06200249]
[1766161988631,0.00030814,88789.0,88780.0,0.01126379]
[1766161988839,0.00030814,88789.0,88787.0,0.08586794]
[1766161989081,1.4e-07,88789.0,88787.0,0.08586794]
[1766161989289,1.4e-07,88789.0,88783.0,0.01126341]
[1766161989497,1.4e-07,88789.0,88760.0,0.40099999]
[1766161989498,1.4e-07,88789.0,88769.0,0.01126519]
[1766161989700,0.000308,88783.0,88771.0,0.0025]
[1766161989933,0.01126367,88781.0,88771.0,0.0025]
[1766161990138,0.01126341,88783.0,88771.0,0.0025]
[1766161990353,1.4e-07,88789.0,88771.0,0.0025]
[1766161990592,1.4e-07,88789.0,88780.0,0.01126379]
[1766161990820,1.4e-07,88789.0,88782.0,0.0025]
[1766161991089,1.4e-07,88789.0,88784.0,0.01126329]
[1766161991339,1.4e-07,88789.0,88787.0,0.0025]
[1766161992057,1.4e-07,88789.0,88787.0,0.002192]
[1766161992783,1.4e-07,88789.0,88786.0,0.01126303]
[1766161992996,1.4e-07,88789.0,88781.0,0.08586794]
[1766161992997,0.01375986,88811.0,88781.0,0.08586794]
[1766161992998,0.0002,88832.0,88814.0,0.01125948]
[1766161993212,0.0002,88832.0,88813.0,0.01125961]
[1766161993213,0.5001081,88822.0,88819.0,0.08586794]
[1766161993427,0.4990091,88822.0,88819.0,0.08586794]
[1766161993728,0.4990091,88822.0,88819.0,0.09712679]
[1766161993927,0.00568,88838.0,88819.0,0.09712679]
[1766161993929,0.5,88844.0,88827.0,0.01125783]
[1766161994058,0.50036024,88844.0,88828.0,0.00568]
[1766161994269,0.01125581,88843.0,88828.0,0.00568]
[1766161994451,0.50036024,88844.0,88828.0,0.00568]
[1766161994452,0.51161592,88844.0,88828.0,0.00568]
[1766161994846,0.50036024,88844.0,88823.0,0.0025]
[1766161995065,0.50036024,88844.0,88824.0,0.00568]
[1766161995260,0.50036024,88844.0,88827.0,0.0025]
[1766161995472,0.50036024,88844.0,88824.0,0.00568]
[1766161995473,0.5,88911.0,88824.0,0.00568]
[1766161995474,0.5,88911.0,88849.0,0.0025]
[1766161995475,0.15348,88866.0,88849.0,0.0025]
[1766161995696,0.01125403,88857.0,88850.0,0.08586794]
[1766161995898,0.01125403,88857.0,88837.0,0.01125657]
[1766161995899,0.01125403,88857.0,88837.0,0.08586794]
[1766161995900,0.01125505,88849.0,88837.0,0.08586794]
[1766161996102,0.00568,88857.0,88838.0,0.0025]
[1766161996103,0.01125492,88850.0,88838.0,0.0025]
[1766161996314,0.524,88852.0,88839.0,0.08586794]
[1766161996531,0.524,88852.0,88838.0,0.0025]
[1766161996754,0.25171,88854.0,88839.0,0.08586794]
[1766161997013,0.01693403,88857.0,88839.0,0.08586794]
[1766161997134,0.05627145,88855.0,88839.0,0.08586794]
[1766161997520,0.01125416,88856.0,88838.0,0.0025]
[1766161997521,1e-08,88850.0,88840.0,0.08586794]
[1766161997733,1e-08,88850.0,88848.0,0.0025]
[1766161997941,1e-08,88850.0,88849.0,0.00818]
[1766161998691,0.00568,88870.0,88855.0,0.0025]
[1766161999061,0.00568,88870.0,88859.0,0.08586794]
[1766161999062,0.01693239,88870.0,88859.0,0.08586794]
[1766161999258,0.00568,88870.0,88859.0,0.08586794]
[1766161999624,0.01125264,88868.0,88855.0,0.0025]
[1766161999831,0.00568,88870.0,88857.0,0.08586794]
[1766162000028,0.31285,88882.0,88857.0,0.08586794]
[1766162000230,0.15248903,88866.0,88857.0,0.08586794]
[1766162000984,0.15248903,88866.0,88855.0,0.0025]
[1766162000985,0.01693302,88865.0,88855.0,0.0025]
[1766162001234,0.001099,88857.0,88855.0,0.0025]
[1766162001408,0.001099,88857.0,88844.0,0.01]
[1766162001409,0.006779,88857.0,88844.0,0.01]
[1766162001614,0.004279,88857.0,88844.0,0.01]
[1766162001827,0.20875355,88866.0,88856.0,0.08586794]
[1766162001828,0.15248903,88866.0,88856.0,0.08586794]
[1766162002369,0.15816903,88866.0,88856.0,0.08586794]
[1766162002787,0.15816903,88866.0,88845.0,0.00568]
[1766162002788,0.01125327,88863.0,88839.0,0.01125631]
[1766162002993,0.01125391,88858.0,88840.0,0.08586794]
[1766162003202,0.01125365,88860.0,88840.0,0.08586794]
[1766162003203,0.00568,88857.0,88841.0,0.01125606]
[1766162003399,0.15248903,88866.0,88857.0,0.001099]
[1766162003816,0.00568,88865.0,88856.0,0.08586794]
[1766162004021,0.15248903,88866.0,88864.0,0.05626517]
[1766162004022,0.07106225,88866.0,88864.0,0.05626517]
[1766162004222,0.01124985,88890.0,88860.0,0.01125365]
[1766162004223,0.47285775,88888.0,88876.0,0.01125163]
[1766162004464,0.47285775,88888.0,88869.0,0.22504815]
[1766162004465,0.47285775,88888.0,88878.0,0.08586794]
[1766162004673,0.47285775,88888.0,88856.0,0.14771068]
[1766162004674,0.47285775,88888.0,88874.0,0.00568]
[1766162004849,0.47285775,88888.0,88874.0,0.00010803]
[1766162005043,0.47285775,88888.0,88874.0,0.00578803]
[1766162005259,0.47285775,88888.0,88874.0,0.00010803]
[1766162005468,0.01125112,88880.0,88874.0,0.00010803]
[1766162005837,0.01125112,88880.0,88850.0,0.86701444]
[1766162005838,0.01125213,88872.0,88864.0,0.0025]
[1766162006055,0.31285,88886.0,88864.0,0.0025]
[1766162006056,0.00199998,88970.0,88890.0,0.86701444]
[1766162006276,0.00010801,88911.0,88910.0,0.08586794]
[1766162006480,0.89251,88939.0,88910.0,0.08586794]
[1766162006481,0.01124404,88936.0,88910.0,0.08586794]
[1766162006685,0.01696416,88935.0,88929.0,0.08586794]
[1766162006893,0.00572,88935.0,88929.0,0.08586794]
[1766162007102,0.01124252,88948.0,88929.0,0.08586794]
[1766162007103,0.01124176,88954.0,88930.0,0.01124479]
[1766162007316,0.00010792,88954.0,88953.0,0.08586794]
[1766162007493,0.08586794,88999.0,88940.0,0.86701444]
[1766162007494,0.0112405,88964.0,88954.0,0.00077508]
[1766162007734,0.0112405,88964.0,88938.0,0.01124378]
[1766162007735,0.011241,88960.0,88938.0,0.0025]
[1766162007955,0.04508,88968.0,88946.0,0.08586794]
[1766162008165,0.01123873,88978.0,88961.0,0.17086907]
[1766162008380,0.05619349,88979.0,88947.0,0.0025]
[1766162008381,0.01123961,88971.0,88947.0,0.0025]
[1766162008584,0.000216,88961.0,88947.0,0.0025]
[1766162008757,0.000216,88961.0,88960.0,0.17086907]
[1766162008937,0.000216,88961.0,88960.0,0.16837176]
[1766162008938,0.00572,88961.0,88960.0,0.16837176]
[1766162009134,0.01123949,88972.0,88960.0,0.16837176]
[1766162009355,0.04504,88974.0,88947.0,0.01374265]
[1766162009356,0.00572,88971.0,88962.0,0.17086907]
[1766162009707,0.00572,88971.0,88962.0,0.17065307]
[1766162009928,0.00052,88971.0,88962.0,0.17065307]
[1766162010340,0.01123974,88970.0,88948.0,0.6739]
[1766162010544,0.57966,88980.0,88947.0,0.17086907]
[1766162010545,0.0025,88985.0,88962.0,0.17086907]
[1766162010780,1.36801443,89000.0,88962.0,0.16586907]
[1766162010781,0.05076,88984.0,88962.0,0.16586907]
[1766162010973,0.05076,88984.0,88951.0,0.0025]
[1766162010974,1.36701444,89000.0,88951.0,0.0025]
[1766162010975,0.01123949,88972.0,88951.0,0.0025]
[1766162011185,0.05076,88971.0,88962.0,0.17086907]
[1766162011408,0.04504,88970.0,88962.0,0.17086907]
[1766162012098,0.01123987,88969.0,88951.0,0.0025]
[1766162012441,0.01123987,88969.0,88943.0,0.01124315]
[1766162012442,0.01124012,88967.0,88943.0,0.01124315]
[1766162012661,0.01124062,88963.0,88953.0,0.08543454]
[1766162012868,0.01124062,88963.0,88938.0,0.0113517]
[1766162012869,0.01124125,88958.0,88938.0,0.00010792]
[1766162013072,0.00572,88962.0,88938.0,0.00010792]
[1766162013073,0.0112434,88941.0,88938.0,0.00010792]
[1766162013287,0.05076,88940.0,88924.0,0.08543454]
[1766162013508,0.27573987,88940.0,88924.0,0.08543454]
[1766162013722,0.06746499,88935.0,88924.0,0.08543454]
[1766162013919,0.06746499,88935.0,88910.0,0.08586794]
[1766162013920,0.01124441,88933.0,88910.0,0.08586794]
[1766162014040,0.00572,88932.0,88912.0,0.05623496]
[1766162014248,0.01124467,88931.0,88910.0,0.08586794]
[1766162014571,0.01124479,88930.0,88910.0,0.08586794]
[1766162014751,0.01124467,88931.0,88910.0,0.09711526]
[1766162014957,0.06194277,88932.0,88910.0,0.09711526]
[1766162014958,0.01124517,88927.0,88910.0,0.08586794]
[1766162015173,0.01124505,88928.0,88910.0,0.08586794]
[1766162015444,0.04514782,88940.0,88928.0,0.001099]
[1766162015445,0.00010782,88940.0,88928.0,0.001099]
[1766162015571,0.00010782,88940.0,88924.0,0.08543454]
[1766162015572,0.01124441,88933.0,88924.0,0.08543454]
[1766162015770,0.24099,88927.0,88912.0,0.08543454]
[1766162015996,0.01124581,88922.0,88912.0,0.08543454]
[1766162016198,0.01124606,88920.0,88912.0,0.08543454]
[1766162016477,0.01124656,88916.0,88912.0,0.08543454]
[1766162016652,0.06754826,88919.0,88901.0,0.01124846]
[1766162016653,0.05630207,88919.0,88901.0,0.01124846]
[1766162016851,0.05630207,88919.0,88901.0,0.0025]
[1766162016852,0.01124631,88918.0,88901.0,0.0025]
[1766162017071,0.01124656,88916.0,88901.0,0.0025]
[1766162017271,0.01124656,88916.0,88898.0,0.01124884]
[1766162017272,0.05623256,88917.0,88896.0,0.09711704]
[1766162017496,0.05630207,88919.0,88896.0,0.08586794]
[1766162017779,0.05623765,88909.0,88896.0,0.08586794]
[1766162017917,0.01124783,88906.0,88896.0,0.08586794]
[1766162018125,0.05623903,88907.0,88896.0,0.08586794]
[1766162018126,0.01124808,88904.0,88896.0,0.08586794]
[1766162018336,0.05623854,88907.0,88896.0,0.08586794]
[1766162018337,0.04504,88903.0,88896.0,0.08586794]
[1766162018561,0.04504,88903.0,88871.0,0.06853638]
[1766162018562,0.04504,88903.0,88870.0,1.15288238]
[1766162018563,0.04504,88903.0,88840.0,0.57689]
[1766162018564,0.04517239,88902.0,88840.0,0.57689]
[1766162018778,0.04517239,88902.0,88845.0,0.01125555]
[1766162018779,0.01125226,88871.0,88845.0,0.01125555]
[1766162018973,0.24099,88876.0,88845.0,0.01125555]
[1766162018974,0.24099,88876.0,88845.0,0.00035989]
[1766162018975,0.05626677,88863.0,88845.0,0.00035989]
[1766162019171,0.05076,88870.0,88846.0,0.0025]
[1766162019172,0.01125391,88858.0,88846.0,0.0025]
[1766162019377,0.00572,88862.0,88845.0,0.00035989]
[1766162019378,0.01125416,88856.0,88845.0,0.00035989]
[1766162019601,0.24099,88863.0,88845.0,0.00035989]
[1766162019602,0.01125492,88850.0,88845.0,0.00035989]
[1766162019800,0.04504,88849.0,88845.0,0.00035989]
[1766162020078,0.04504,88849.0,88821.0,0.07653004]
[1766162020079,0.04504,88849.0,88827.0,0.0025]
[1766162020080,0.01125568,88844.0,88827.0,0.0025]
[1766162020306,0.01697517,88848.0,88827.0,0.0025]
[1766162020307,0.05076,88843.0,88828.0,0.05628855]
[1766162020513,0.00572,88842.0,88827.0,0.00036024]
[1766162020719,0.01125644,88838.0,88827.0,0.00036024]
[1766162020937,0.01125631,88839.0,88827.0,0.00036024]
[1766162021112,0.01697593,88842.0,88827.0,0.00036024]
[1766162021113,0.07653004,88838.0,88827.0,0.00036024]
[1766162021328,0.05628377,88836.0,88827.0,0.00036024]
[1766162021510,0.01125695,88834.0,88827.0,0.00036024]
[1766162021727,0.01125707,88833.0,88827.0,0.00036024]
[1766162022058,0.05076,88832.0,88827.0,0.00036024]
[1766162022370,0.0112572,88832.0,88827.0,0.00036024]
[1766162022573,0.24099,88848.0,88831.0,0.01125733]
[1766162022801,0.24099,88848.0,88830.0,0.01125745]
[1766162022802,0.05630207,88846.0,88830.0,0.01125745]
[1766162022938,0.05630207,88846.0,88836.0,0.01125669]
[1766162023140,0.05630207,88846.0,88827.0,0.00036024]
[1766162023141,2.07e-06,88846.0,88830.0,0.01125745]
[1766162023344,2.07e-06,88846.0,88834.0,0.01125695]
[1766162023569,2.07e-06,88846.0,88833.0,0.01125707]
[1766162023727,2.07e-06,88846.0,88834.0,0.01125695]
[1766162023953,2.07e-06,88846.0,88839.0,0.01125631]
[1766162024147,2.07e-06,88846.0,88832.0,0.0112572]
[1766162024349,2.07e-06,88846.0,88833.0,0.01125707]
[1766162024548,2.07e-06,88846.0,88832.0,0.0112572]
[1766162024760,2.07e-06,88846.0,88836.0,0.01125669]
[1766162025093,2.07e-06,88846.0,88830.0,0.01125745]
[1766162025293,0.01125593,88842.0,88827.0,0.00036024]
[1766162025496,0.01125555,88845.0,88827.0,0.00036024]
[1766162025702,2.07e-06,88846.0,88835.0,0.01125682]
[1766162025908,2.07e-06,88846.0,88833.0,0.01125707]
[1766162026219,2.07e-06,88846.0,88828.0,0.06754576]
[1766162026474,2.07e-06,88846.0,88834.0,0.01125695]
[1766162026649,2.07e-06,88846.0,88831.0,0.57689]
[1766162026930,2.07e-06,88846.0,88827.0,0.00036024]
[1766162026931,0.06753913,88838.0,88827.0,0.00036024]
[1766162027174,2.07e-06,88846.0,88827.0,0.00036024]
[1766162027175,0.001099,88831.0,88827.0,0.00036024]
[1766162027392,4.14e-06,88837.0,88831.0,0.01125733]
[1766162027606,4.14e-06,88837.0,88828.0,0.01125771]
[1766162027856,4.14e-06,88837.0,88827.0,0.00036024]
[1766162028098,4.14e-06,88837.0,88830.0,0.01125745]
[1766162028324,4.14e-06,88837.0,88835.0,0.0562838]
[1766162028546,4.14e-06,88837.0,88834.0,0.06754106]
[1766162028753,4.14e-06,88837.0,88835.0,0.05628384]
[1766162028997,4.14e-06,88837.0,88830.0,0.58814745]
[1766162028998,4.14e-06,88837.0,88830.0,0.57689]
[1766162029190,4.14e-06,88837.0,88827.0,0.00036024]
[1766162029512,0.01125517,88848.0,88828.0,0.01375771]
[1766162029732,0.01125555,88845.0,88828.0,0.0025]
[1766162029947,0.24099,88844.0,88828.0,0.0025]
[1766162030151,0.01125669,88836.0,88827.0,0.00036024]
[1766162030382,0.57782,88842.0,88827.0,0.00036024]
[1766162030383,0.00572,88842.0,88828.0,0.57689]
[1766162030597,0.00572,88841.0,88836.0,0.001099]
[1766162030801,0.05627298,88853.0,88836.0,0.001099]
[1766162031012,0.24099,88853.0,88836.0,0.05738248]
[1766162031213,0.22505995,88866.0,88836.0,0.05738248]
[1766162031214,0.22505995,88866.0,88841.0,0.01125606]
[1766162031215,0.01125353,88861.0,88841.0,0.01125606]
[1766162031388,0.24099,88849.0,88828.0,0.0025]
[1766162031561,0.24099,88849.0,88821.0,0.58261]
[1766162031562,0.24099,88849.0,88835.0,0.01125682]
[1766162031778,0.05076,88848.0,88832.0,0.0137572]
[1766162031984,0.05076,88848.0,88826.0,0.01125796]
[1766162031985,0.24099,88845.0,88826.0,0.01125796]
[1766162032160,0.25224555,88845.0,88828.0,0.0025]
[1766162032361,0.25224555,88845.0,88822.0,0.30169943]
[1766162032362,0.62858,88847.0,88807.0,0.01126037]
[1766162032363,0.57782,88828.0,88807.0,0.01126037]
[1766162032588,0.08778749,88830.0,88807.0,0.01126037]
[1766162032589,0.24099,88826.0,88807.0,0.00010801]
[1766162032788,0.24099,88826.0,88796.0,0.01126176]
[1766162032789,0.01125999,88810.0,88791.0,0.57689]
[1766162032984,0.05629888,88812.0,88787.0,0.01698291]
[1766162032985,0.00572,88809.0,88792.0,0.00363532]
[1766162033161,0.25224986,88811.0,88792.0,0.00363532]
[1766162033162,0.24099,88811.0,88801.0,0.01126113]
[1766162033362,0.24099,88811.0,88798.0,0.05630734]
[1766162033363,0.24099,88824.0,88811.0,0.001099]
[1766162033617,0.04504,88815.0,88811.0,0.001099]
[1766162033753,0.00572,88814.0,88800.0,0.01126126]
[1766162033964,0.00572,88814.0,88804.0,0.01126075]
[1766162034188,0.00572,88814.0,88803.0,0.067565]
[1766162034398,0.00572,88814.0,88802.0,0.011261]
[1766162034777,0.00572,88814.0,88811.0,0.01125986]
[1766162034975,0.00572,88814.0,88806.0,0.0112605]
[1766162034976,0.0025,88831.0,88806.0,0.0112605]
[1766162034977,0.57782,88833.0,88822.0,0.01125847]
[1766162035181,0.24099,88837.0,88806.0,0.0025]
[1766162035182,0.24099,88837.0,88826.0,0.01125796]
[1766162035409,0.05076,88836.0,88824.0,0.01125821]
[1766162035605,0.05076,88836.0,88820.0,0.01125872]
[1766162035606,0.05076,88836.0,88822.0,0.0675506]
[1766162035792,0.24099,88836.0,88821.0,0.01125859]
[1766162035986,0.01125606,88841.0,88821.0,0.01125859]
[1766162035987,0.24099,88834.0,88822.0,0.06755072]
[1766162036293,0.24099,88834.0,88823.0,0.01125834]
[1766162036294,0.05076,88833.0,88823.0,0.01125834]
[1766162036519,0.05076,88833.0,88817.0,0.22518012]
[1766162036521,0.05076,88833.0,88786.0,0.58815303]
[1766162036522,0.81881,88822.0,88786.0,0.58815303]
[1766162036721,0.07653004,88806.0,88785.0,0.01]
[1766162036916,0.07653004,88806.0,88776.0,0.57689]
[1766162036917,0.01126176,88796.0,88776.0,0.57689]
[1766162037122,0.00572,88795.0,88776.0,0.0112643]
[1766162037337,0.00572,88795.0,88777.0,0.01126417]
[1766162037538,0.00572,88795.0,88774.0,0.01126455]
[1766162037793,0.00572,88795.0,88778.0,0.01126405]
[1766162037992,0.00572,88795.0,88776.0,0.0563214]
[1766162037993,0.24099,88794.0,88776.0,0.0563214]
[1766162038121,0.24099,88794.0,88779.0,0.01126392]
[1766162038328,0.24099,88794.0,88780.0,0.01126379]
[1766162038549,0.24099,88794.0,88781.0,0.01126367]
[1766162038751,0.24099,88794.0,88777.0,0.01126417]
[1766162038927,0.24099,88794.0,88774.0,0.00010797]
[1766162038928,0.58354,88795.0,88774.0,0.00010797]
[1766162038929,0.24099,88791.0,88774.0,0.00010797]
[1766162039162,0.24099,88791.0,88768.0,0.01166532]
[1766162039164,0.25225341,88783.0,88768.0,0.0004]
[1766162039363,0.29179,88782.0,88768.0,0.0005081]
[1766162039682,0.24099,88793.0,88775.0,0.01126443]
[1766162040032,0.57782,88794.0,88768.0,0.0005081]
[1766162040033,0.0508,88792.0,88772.0,0.01126481]
[1766162040181,0.0508,88792.0,88770.0,0.01126506]
[1766162040182,0.24099,88791.0,88774.0,0.01126455]
[1766162040396,0.24099,88791.0,88778.0,0.01126405]
[1766162040588,0.0025,88801.0,88768.0,0.0005081]
[1766162040589,0.00572,88790.0,88781.0,0.06758164]
[1766162040941,0.00572,88790.0,88776.0,0.22528469]
[1766162040942,0.00572,88790.0,88776.0,0.0025]
[1766162041426,0.0508,88789.0,88778.0,0.01126405]
[1766162041681,0.0508,88789.0,88776.0,0.0025]
[1766162041682,0.00572,88788.0,88776.0,0.0025]
[1766162041885,0.00572,88788.0,88768.0,0.0005081]
[1766162041886,0.25225341,88783.0,88768.0,0.0005081]
[1766162042090,0.25225341,88783.0,88768.0,0.05683433]
[1766162042091,0.24099,88783.0,88768.0,0.05683433]
[1766162042286,0.24099,88783.0,88768.0,0.0005081]
[1766162042493,0.06758213,88781.0,88768.0,0.0005081]
[1766162042696,0.23097747,88788.0,88768.0,0.0005081]
[1766162042697,0.01126417,88777.0,88768.0,1e-07]
[1766162042833,0.00572,88776.0,88768.0,1e-07]
[1766162043053,0.37383914,88780.0,88768.0,1e-07]
[1766162043054,0.01126354,88782.0,88768.0,1e-07]
[1766162043256,0.57782,88789.0,88769.0,0.01126519]
[1766162043463,0.57782,88789.0,88768.0,1e-07]
[1766162043464,0.07653004,88785.0,88768.0,1e-07]
[1766162043850,0.25225392,88779.0,88768.0,1e-07]
[1766162044056,0.24099,88779.0,88768.0,1e-07]
[1766162044260,0.24099,88779.0,88763.0,0.0017001]
[1766162044261,0.57467,88779.0,88763.0,0.0017001]
[1766162044460,0.0508,88784.0,88760.0,0.0016]
[1766162044461,0.25802,88769.0,88760.0,0.0016]
[1766162044664,0.25802,88769.0,88746.0,0.01]
[1766162044665,0.000591,88763.0,88753.0,0.01126722]
[1766162044876,0.000591,88763.0,88746.0,0.01024714]
[1766162044877,0.000591,88763.0,88751.0,0.05633713]
[1766162045092,0.04508,88767.0,88751.0,0.05633713]
[1766162045093,0.04508,88767.0,88752.0,0.01126735]
[1766162045298,0.04508,88767.0,88749.0,0.05633856]
[1766162045299,0.04508,88767.0,88749.0,0.01126773]
[1766162045529,0.04508,88767.0,88747.0,0.06760775]
[1766162045730,0.04508,88767.0,88751.0,0.57008]
[1766162045879,0.06758616,88776.0,88756.0,0.01126684]
[1766162045880,0.25802,88772.0,88756.0,0.01126684]
[1766162046060,0.57467,88776.0,88753.0,0.01126722]
[1766162046061,0.0508,88771.0,88753.0,0.01126722]
[1766162046264,0.0508,88771.0,88751.0,0.01024714]
[1766162046459,0.0508,88771.0,88746.0,0.01024714]
[1766162046731,0.0508,88771.0,88752.0,0.0025]
[1766162046882,0.0508,88771.0,88752.0,0.01376735]
[1766162047085,0.0508,88771.0,88752.0,0.07010367]
[1766162047270,0.25802,88770.0,88753.0,0.05633612]
[1766162047470,0.01126392,88779.0,88752.0,0.01376735]
[1766162047471,0.04508,88769.0,88766.0,0.01126557]
[1766162047677,0.04508,88769.0,88761.0,0.0112662]
[1766162047678,0.03384298,88811.0,88761.0,0.0112662]
[1766162047679,0.01125973,88812.0,88788.0,0.57008]
[1766162047876,0.01125973,88812.0,88787.0,0.00811]
[1766162047877,0.04508,88803.0,88789.0,0.58034675]
[1766162048081,0.00572,88802.0,88791.0,0.0112624]
[1766162048345,0.005212,88802.0,88794.0,0.01126202]
[1766162048487,0.005212,88802.0,88790.0,0.01026632]
[1766162048932,0.01126113,88801.0,88785.0,0.01026632]
[1766162049162,0.005212,88802.0,88783.0,0.0025]
[1766162049163,0.001099,88790.0,88783.0,0.0025]
[1766162049371,0.001099,88790.0,88785.0,0.01126316]
[1766162049372,0.00572,88789.0,88785.0,0.01126316]
[1766162049575,0.25802,88803.0,88787.0,0.01126291]
[1766162049781,0.25802,88803.0,88786.0,0.01126303]
[1766162049987,0.01126138,88799.0,88786.0,0.01026632]
[1766162050164,0.25802,88796.0,88780.0,0.01026632]
[1766162050303,0.00572,88795.0,88776.0,0.0112643]
[1766162050508,0.01698189,88795.0,88777.0,0.01029029]
[1766162050748,0.83841,88795.0,88778.0,0.01029029]
[1766162051003,0.83841,88795.0,88773.0,0.01126468]
[1766162051004,0.05631231,88791.0,88779.0,0.01029029]
[1766162051249,0.25802,88793.0,88773.0,0.0025]
[1766162051250,0.26928214,88793.0,88773.0,0.0025]
[1766162051446,0.25802,88793.0,88775.0,0.0025]
[1766162051692,0.01126151,88798.0,88775.0,0.0025]
[1766162051693,0.0508,88792.0,88777.0,0.01126417]
[1766162051890,0.00572,88791.0,88778.0,0.02155434]
[1766162052101,0.81114537,88805.0,88778.0,0.02155434]
[1766162052102,0.04508,88810.0,88797.0,0.01126164]
[1766162052338,0.00572,88809.0,88787.0,0.0215532]
[1766162052538,0.00572,88809.0,88765.0,0.03906575]
[1766162052539,0.05630393,88804.0,88788.0,0.01029029]
[1766162052741,0.25802,88803.0,88786.0,0.01126303]
[1766162053005,0.05633999,88810.0,88770.0,1.6718678]
[1766162053006,0.00572,88802.0,88795.0,0.01126189]
[1766162053205,0.00572,88802.0,88790.0,0.01126252]
[1766162053206,0.00010812,88812.0,88790.0,0.01126252]
[1766162053207,0.25812812,88812.0,88790.0,0.01126252]
[1766162053448,0.3031,88807.0,88790.0,0.01029029]
[1766162053653,0.3031,88807.0,88790.0,0.01126252]
[1766162054069,0.3031,88807.0,88789.0,0.01029345]
[1766162054070,0.01126062,88805.0,88789.0,0.01029345]
[1766162054261,0.00572,88804.0,88787.0,0.01029345]
[1766162054533,0.00010812,88812.0,88784.0,0.05631632]
[1766162054534,0.25802,88802.0,88788.0,0.01029345]
[1766162054738,0.0508,88803.0,88789.0,0.01029345]
[1766162054888,0.0508,88803.0,88790.0,0.01029345]